fUSD/lending_fUSD_20240615
["ID","MTS","AMOUNT","RATE_DAILY","PERIOD"]
[329558242,1718435446124,-537.84,0.00021917,2]
[329558243,1718435446153,-500.0,0.00021917,2]
[329558244,1718435446167,-500.0,0.00021917,2]
[329558245,1718435446183,-537.84,0.00021917,2]
[329558246,1718435446212,-537.84,0.00021917,2]
[329558247,1718435446230,-500.0,0.00021917,2]
[329558248,1718435446242,-500.0,0.00021917,2]
[329558249,1718435446255,-500.0,0.00021917,2]
[329558250,1718435446267,-500.0,0.00021917,2]
[329558251,1718435446320,-500.0,0.00021917,2]
[329558252,1718435446334,-603.52,0.00021917,2]
[329558253,1718435446398,-500.0,0.00021917,2]
[329558254,1718435446460,-298.03470425,0.00021917,2]
[329558255,1718435446474,-331.43483434,0.00021917,2]
[329558256,1718435446499,-500.0,0.00021917,2]
[329558257,1718435446525,-500.0,0.00021917,2]
[329558258,1718435446538,-500.0,0.00021917,2]
[329558259,1718435446580,-500.0,0.00021917,2]
[329558260,1718435446593,-500.0,0.00021917,2]
[329558261,1718435446607,-500.0,0.00021917,2]
[329558262,1718435446619,-500.0,0.00021917,2]
[329558263,1718435446643,-870.1,0.00021917,2]
[329558264,1718435446678,-500.0,0.00021917,2]
[329558265,1718435446697,-500.0,0.00021917,2]
[329558266,1718435446728,-500.0,0.00021917,2]
[329558267,1718435446777,-500.0,0.00021917,2]
[329558268,1718435446798,-500.0,0.00021917,2]
[329558269,1718435446839,-500.0,0.00021917,2]
[329558270,1718435446852,-966.75,0.00021917,2]
[329558271,1718435446863,-500.0,0.00021917,2]
[329558272,1718435446876,-500.0,0.00021917,2]
[329558273,1718435446910,-500.0,0.00021917,2]
[329558274,1718435446923,-731.46,0.00021917,2]
[329558275,1718435446939,-664.71,0.00021917,2]
[329558276,1718435446962,-701.44,0.00021917,2]
[329558277,1718435447004,-662.37,0.00021917,2]
[329558278,1718435447017,-500.0,0.00021917,2]
[329558279,1718435447031,-614.8,0.00021917,2]
[329558280,1718435447048,-500.0,0.00021917,2]
[329558281,1718435447065,-500.0,0.00021917,2]
[329558282,1718435447076,-500.0,0.00021917,2]
[329558283,1718435447104,-500.0,0.00021917,2]
[329558284,1718435447116,-500.0,0.00021917,2]
[329558285,1718435447146,-500.0,0.00021917,2]
[329558286,1718435447174,-710.33,0.00021917,2]
[329558287,1718435447202,-500.0,0.00021917,2]
[329558288,1718435447213,-500.0,0.00021917,2]
[329558289,1718435447235,-500.0,0.00021917,2]
[329558290,1718435447264,-500.0,0.00021917,2]
[329558291,1718435447302,-500.0,0.00021917,2]
[329558292,1718435447315,-560.42,0.00021917,2]
[329558293,1718435447329,-500.0,0.00021917,2]
[329558294,1718435447343,-1003.36,0.00021917,2]
[329558295,1718435447359,-500.0,0.00021917,2]
[329558296,1718435447375,-808.6,0.00021917,2]
[329558297,1718435447388,-515.22,0.00021917,2]
[329558298,1718435447416,-500.0,0.00021917,2]
[329558299,1718435447429,-500.0,0.00021917,2]
[329558300,1718435447444,-500.0,0.00021917,2]
[329558301,1718435447457,-368.73527455,0.00021917,2]
[329558302,1718435447474,-500.0,0.00021917,2]
[329558303,1718435447505,-972.92,0.00021917,2]
[329558304,1718435447519,-617.12,0.00021917,2]
[329558305,1718435447536,-587.79628531,0.00021917,2]
[329558306,1718435447558,-1899.11,0.00021917,2]
[329558307,1718435447569,-500.0,0.00021917,2]
[329558308,1718435447604,-500.0,0.00021917,2]
[329558309,1718435447632,-500.0,0.00021917,2]
[329558310,1718435447644,-500.0,0.00021917,2]
[329558311,1718435447656,-500.0,0.00021917,2]
[329558312,1718435447676,-533.98457167,0.00021917,2]
[329558314,1718435447689,-500.0,0.00021917,2]
[329558315,1718435447705,-1219.86,0.00021917,2]
[329558316,1718435447736,-500.0,0.00021917,2]
[329558317,1718435447764,-2550.06,0.00021917,2]
[329558318,1718435447792,-500.0,0.00021917,2]
[329558319,1718435447814,-500.0,0.00021917,2]
[329558320,1718435447839,-500.0,0.00021917,2]
[329558321,1718435447850,-500.0,0.00021917,2]
[329558322,1718435447883,-500.0,0.00021917,2]
[329558323,1718435447894,-500.0,0.00021917,2]
[329558324,1718435447909,-500.0,0.00021917,2]
[329558325,1718435447928,-500.0,0.00021917,2]
[329558326,1718435447940,-500.0,0.00021917,2]
[329558327,1718435447976,-500.0,0.00021917,2]
[329558328,1718435447988,-500.0,0.00021917,2]
[329558329,1718435448017,-500.0,0.00021917,2]
[329558330,1718435448028,-500.0,0.00021917,2]
[329558331,1718435448052,-519.74516567,0.00021917,2]
[329558332,1718435448064,-659.67,0.00021917,2]
[329558333,1718435448076,-771.84,0.00021917,2]
[329558334,1718435448088,-500.0,0.00021917,2]
[329558335,1718435448102,-731.68,0.00021917,2]
[329558336,1718435448129,-500.0,0.00021917,2]
[329558337,1718435448141,-806.48,0.00021917,2]
[329558339,1718435448156,-500.0,0.00021917,2]
[329558341,1718435448169,-500.0,0.00021917,2]
[329558342,1718435448180,-500.0,0.00021917,2]
[329558343,1718435448191,-500.0,0.00021917,2]
[329558344,1718435448202,-500.0,0.00021917,2]
[329558346,1718435448215,-500.0,0.00021917,2]
[329558347,1718435448228,-500.0,0.00021917,2]
[329558348,1718435448249,-500.0,0.00021917,2]
[329558349,1718435448261,-500.0,0.00021917,2]
[329558350,1718435448278,-500.0,0.00021917,2]
[329558352,1718435448298,-500.0,0.00021917,2]
[329558353,1718435448311,-500.0,0.00021917,2]
[329558355,1718435448336,-509.85,0.00021917,2]
[329558358,1718435448363,-817.61,0.00021917,2]
[329558361,1718435448393,-500.0,0.00021917,2]
[329558362,1718435448414,-500.0,0.00021917,2]
[329558364,1718435448434,-500.0,0.00021917,2]
[329558366,1718435448460,-500.0,0.00021917,2]
[329558367,1718435448484,-500.0,0.00021917,2]
[329558369,1718435448502,-500.0,0.00021917,2]
[329558370,1718435448514,-500.0,0.00021917,2]
[329558372,1718435448526,-500.0,0.00021917,2]
[329558373,1718435448551,-500.0,0.00021917,2]
[329558374,1718435448564,-500.0,0.00021917,2]
[329558376,1718435448575,-500.0,0.00021917,2]
[329558377,1718435448587,-500.0,0.00021917,2]
[329558378,1718435448609,-500.0,0.00021917,2]
[329558379,1718435448619,-500.0,0.00021917,2]
[329558380,1718435448630,-500.0,0.00021917,2]
[329558382,1718435448643,-500.0,0.00021917,2]
[329558383,1718435448664,-500.0,0.00021917,2]
[329558384,1718435448687,-1131.56,0.00021917,2]
[329558385,1718435448701,-2621.56,0.00021917,2]
[329558386,1718435448713,-500.0,0.00021917,2]
[329558387,1718435448723,-219.8813535,0.00021917,2]
[329558388,1718435448734,-500.0,0.00021917,2]
[329558389,1718435448745,-701.85,0.00021917,2]
[329558390,1718435448759,-500.0,0.00021917,2]
[329558391,1718435448773,-507.7,0.00021917,2]
[329558392,1718435448784,-500.0,0.00021917,2]
[329558393,1718435448803,-500.0,0.00021917,2]
[329558394,1718435448820,-500.0,0.00021917,2]
[329558395,1718435448832,-521.88741815,0.00021917,2]
[329558396,1718435448845,-500.0,0.00021917,2]
[329558397,1718435448856,-500.0,0.00021917,2]
[329558398,1718435448867,-500.0,0.00021917,2]
[329558399,1718435448900,-500.0,0.00021917,2]
[329558400,1718435448920,-595.12,0.00021917,2]
[329558401,1718435448931,-500.0,0.00021917,2]
[329558402,1718435448944,-500.0,0.00021917,2]
[329558403,1718435448958,-689.81,0.00021917,2]
[329558404,1718435448970,-500.0,0.00021917,2]
[329558405,1718435448990,-500.0,0.00021917,2]
[329558406,1718435449002,-500.0,0.00021917,2]
[329558407,1718435449015,-500.0,0.00021917,2]
[329558408,1718435449027,-500.0,0.00021917,2]
[329558409,1718435449041,-500.0,0.00021917,2]
[329558410,1718435449072,-170.83373388,0.00021917,2]
[329558411,1718435449082,-500.0,0.00021917,2]
[329558412,1718435449099,-514.73711644,0.00021917,2]
[329558413,1718435449111,-500.0,0.00021917,2]
[329558414,1718435449125,-500.0,0.00021917,2]
[329558415,1718435449138,-805.51155039,0.00021917,2]
[329558416,1718435449624,-1062.45142934,0.00021917,2]
[329558417,1718435449643,-843.43702027,0.00021917,2]
[329558418,1718435449656,-531.31462126,0.00021917,2]
[329558419,1718435449669,-729.65,0.00021917,2]
[329558420,1718435449698,-500.0,0.00021917,2]
[329558421,1718435449713,-562.99,0.00021917,2]
[329558422,1718435449725,-500.0,0.00021917,2]
[329558423,1718435449740,-500.0,0.00021917,2]
[329558424,1718435449752,-500.0,0.00021917,2]
[329558425,1718435449776,-500.0,0.00021917,2]
[329558426,1718435449787,-726.57,0.00021917,2]
[329558427,1718435449806,-500.0,0.00021917,2]
[329558428,1718435449826,-500.0,0.00021917,2]
[329558429,1718435449838,-500.0,0.00021917,2]
[329558430,1718435449854,-500.0,0.00021917,2]
[329558431,1718435449874,-500.0,0.00021917,2]
[329558432,1718435449891,-696.68,0.00021917,2]
[329558433,1718435449904,-521.06528897,0.00021917,2]
[329558434,1718435449921,-500.0,0.00021917,2]
[329558435,1718435449934,-500.0,0.00021917,2]
[329558436,1718435449945,-513.84365508,0.00021917,2]
[329558437,1718435449984,-500.0,0.00021917,2]
[329558438,1718435449996,-519.51662664,0.00021917,2]
[329558439,1718435450008,-551.97,0.00021917,2]
[329558440,1718435450040,-500.0,0.00021917,2]
[329558441,1718435450062,-500.0,0.00021917,2]
[329558442,1718435450075,-500.0,0.00021917,2]
[329558443,1718435450096,-500.0,0.00021917,2]
[329558444,1718435450110,-231.17,0.00021917,2]
[329558445,1718435450126,-903.88,0.00021917,2]
[329558446,1718435450139,-602.84,0.00021917,2]
[329558447,1718435450150,-500.0,0.00021917,2]
[329558448,1718435450164,-500.0,0.00021917,2]
[329558449,1718435450181,-454.14074035,0.00021917,2]
[329558450,1718435450228,-500.0,0.00021917,2]
[329558451,1718435450271,-500.0,0.00021917,2]
[329558452,1718435450282,-697.5,0.00021917,2]
[329558453,1718435450292,-500.0,0.00021917,2]
[329558454,1718435450309,-1574.67,0.00021917,2]
[329558455,1718435450334,-500.0,0.00021917,2]
[329558456,1718435450348,-500.0,0.00021917,2]
[329558457,1718435450377,-521.82,0.00021917,2]
[329558458,1718435450391,-500.0,0.00021917,2]
[329558459,1718435450442,-500.0,0.00021917,2]
[329558460,1718435450466,-500.0,0.00021917,2]
[329558461,1718435450478,-1511.73,0.00021917,2]
[329558462,1718435450489,-520.7454094,0.00021917,2]
[329558463,1718435450499,-500.0,0.00021917,2]
[329558464,1718435450518,-412.79500837,0.00021917,2]
[329558465,1718435450531,-336.08,0.00021917,2]
[329558466,1718435450546,-520.68743408,0.00021917,2]
[329558467,1718435450556,-500.0,0.00021917,2]
[329558468,1718435450568,-500.0,0.00021917,2]
[329558469,1718435450588,-500.0,0.00021917,2]
[329558470,1718435450612,-274.65,0.00021917,2]
[329558471,1718435450623,-500.0,0.00021917,2]
[329558472,1718435450641,-500.0,0.00021917,2]
[329558473,1718435450667,-500.0,0.00021917,2]
[329558474,1718435450689,-584.58,0.00021917,2]
[329558475,1718435450723,-500.0,0.00021917,2]
[329558476,1718435450744,-1555.92,0.00021917,2]
[329558477,1718435450761,-570.43,0.00021917,2]
[329558478,1718435450774,-416.90228149,0.00021917,2]
[329558479,1718435450785,-500.0,0.00021917,2]
[329558480,1718435450796,-500.0,0.00021917,2]
[329558481,1718435450810,-500.0,0.00021917,2]
[329558482,1718435450822,-574.45053573,0.00021917,2]
[329558483,1718435450856,-1590.72,0.00021917,2]
[329558484,1718435450874,-502.32,0.00021917,2]
[329558485,1718435450931,-500.0,0.00021917,2]
[329558486,1718435450948,-500.0,0.00021917,2]
[329558487,1718435450965,-806.62,0.00021917,2]
[329558488,1718435450985,-500.0,0.00021917,2]
[329558489,1718435450998,-687.56,0.00021917,2]
[329558490,1718435451018,-500.0,0.00021917,2]
[329558491,1718435451036,-540.26,0.00021917,2]
[329558492,1718435451057,-991.29,0.00021917,2]
[329558493,1718435451079,-500.0,0.00021917,2]
[329558494,1718435451090,-500.0,0.00021917,2]
[329558495,1718435451116,-549.12074588,0.00021917,2]
[329558496,1718435451148,-500.0,0.00021917,2]
[329558497,1718435451167,-3493.07,0.00021917,2]
[329558498,1718435451185,-500.0,0.00021917,2]
[329558499,1718435451213,-500.0,0.00021917,2]
[329558500,1718435451262,-922.19,0.00021917,2]
[329558501,1718435451308,-500.0,0.00021917,2]
[329558502,1718435451337,-500.0,0.00021917,2]
[329558503,1718435451356,-207.0080628,0.00021917,2]
[329558504,1718435451418,-523.24382488,0.00021917,2]
[329558505,1718435451451,-500.0,0.00021917,2]
[329558506,1718435451462,-500.0,0.00021917,2]
[329558507,1718435451488,-500.0,0.00021917,2]
[329558508,1718435451512,-500.0,0.00021917,2]
[329558509,1718435451536,-500.0,0.00021917,2]
[329558510,1718435451569,-567.32,0.00021917,2]
[329558511,1718435451644,-500.0,0.00021917,2]
[329558512,1718435451659,-500.0,0.00021917,2]
[329558513,1718435451820,-500.0,0.00021917,2]
[329558514,1718435451834,-505.02,0.00021917,2]
[329558515,1718435451848,-493.21474745,0.00021917,2]
[329558516,1718435451878,-500.0,0.00021917,2]
[329558517,1718435451891,-500.0,0.00021917,2]
[329558518,1718435451928,-192.03084525,0.00021917,2]
[329558519,1718435451943,-547.42,0.00021917,2]
[329558520,1718435451957,-500.0,0.00021917,2]
[329558521,1718435451981,-500.0,0.00021917,2]
[329558522,1718435452010,-500.0,0.00021917,2]
[329558523,1718435452026,-500.0,0.00021917,2]
[329558524,1718435452041,-500.0,0.00021917,2]
[329558525,1718435452069,-500.0,0.00021917,2]
[329558526,1718435452084,-698.01,0.00021917,2]
[329558527,1718435452106,-609.64,0.00021917,2]
[329558528,1718435452118,-556.63,0.00021917,2]
[329558529,1718435452131,-500.0,0.00021917,2]
[329558530,1718435452143,-500.0,0.00021917,2]
[329558531,1718435452169,-500.0,0.00021917,2]
[329558532,1718435452181,-212.20801421,0.00021917,2]
[329558533,1718435452192,-500.0,0.00021917,2]
[329558534,1718435452205,-500.0,0.00021917,2]
[329558535,1718435452228,-500.0,0.00021917,2]
[329558536,1718435452254,-500.0,0.00021917,2]
[329558537,1718435452280,-500.0,0.00021917,2]
[329558538,1718435452297,-689.72,0.00021917,2]
[329558539,1718435452311,-500.0,0.00021917,2]
[329558540,1718435452322,-703.94,0.00021917,2]
[329558541,1718435452332,-500.0,0.00021917,2]
[329558542,1718435452343,-500.0,0.00021917,2]
[329558543,1718435452397,-500.0,0.00021917,2]
[329558544,1718435452428,-1601.64,0.00021917,2]
[329558545,1718435452452,-500.0,0.00021917,2]
[329558546,1718435452485,-500.0,0.00021917,2]
[329558547,1718435452499,-500.0,0.00021917,2]
[329558548,1718435452534,-500.0,0.00021917,2]
[329558549,1718435452575,-502.47,0.00021917,2]
[329558550,1718435452601,-500.0,0.00021917,2]
[329558551,1718435452632,-500.0,0.00021917,2]
[329558552,1718435452656,-500.0,0.00021917,2]
[329558553,1718435452670,-156.52,0.00021918,2]
[329558554,1718435452688,-250.0,0.00021918,2]
[329558555,1718435452710,-161.22,0.00021918,2]
[329558556,1718435452728,-205.2059502,0.00022088,2]
[329558557,1718435452747,-1584.0047979,0.00022089,2]
[329558558,1718435452758,-174.20196835,0.0002209,2]
[329558559,1718435452771,-525.09009724,0.0002209,2]
[329558560,1718435452782,-218.06287764,0.0002209,2]
[329558561,1718435452805,-263.13284192,0.0002209,2]
[329558562,1718435452819,-1000.0,0.00022091,2]
[329558563,1718435452833,-151.0,0.00022188,2]
[329558564,1718435452849,-4134.9052445,0.00022189,2]
[329558565,1718435452860,-155.37726229,0.00022189,2]
[329558566,1718435452876,-206.03170677,0.00022189,2]
[329558567,1718435452895,-436.69232455,0.00022189,2]
[329558568,1718435452912,-155.0,0.00022189,2]
[329558569,1718435452927,-500.0,0.0002219,3]
[329558570,1718435452953,-537.84,0.0002219,3]
[329558571,1718435452964,-968.9154,0.0002219,2]
[329558572,1718435452999,-500.0,0.00022191,3]
[329558573,1718435453029,-500.0,0.00022191,3]
[329558574,1718435453048,-500.0,0.00022191,3]
[329558575,1718435453077,-500.0,0.00022191,3]
[329558577,1718435453093,-500.0,0.00022191,3]
[329558579,1718435453117,-500.0,0.00022191,3]
[329558581,1718435453136,-500.0,0.00022191,3]
[329558582,1718435453160,-500.0,0.00022191,3]
[329558585,1718435453172,-500.0,0.00022191,3]
[329558587,1718435453183,-500.0,0.00022191,3]
[329558589,1718435453196,-500.0,0.00022191,3]
[329558591,1718435453206,-500.0,0.00022191,3]
[329558592,1718435453218,-500.0,0.00022191,3]
[329558594,1718435453258,-500.0,0.00022191,3]
[329558596,1718435453274,-500.0,0.00022191,3]
[329558598,1718435453298,-500.0,0.00022191,3]
[329558600,1718435453315,-500.0,0.00022191,3]
[329558602,1718435453378,-707.83,0.00022191,3]
[329558604,1718435453391,-500.0,0.00022191,3]
[329558605,1718435453403,-500.0,0.00022191,3]
[329558606,1718435453414,-500.0,0.00022191,3]
[329558607,1718435453425,-500.0,0.00022191,3]
[329558608,1718435453435,-500.0,0.00022191,3]
[329558609,1718435453447,-500.0,0.00022191,3]
[329558610,1718435453467,-500.0,0.00022191,3]
[329558611,1718435453491,-500.0,0.00022191,3]
[329558612,1718435453503,-771.5,0.00022191,3]
[329558613,1718435453518,-500.0,0.00022191,3]
[329558614,1718435453530,-500.0,0.00022191,3]
[329558615,1718435453548,-500.0,0.00022191,3]
[329558616,1718435453588,-634.53556534,0.00022191,3]
[329558617,1718435453602,-500.0,0.00022191,3]
[329558618,1718435453640,-500.0,0.00022191,3]
[329558619,1718435453652,-740.54,0.00022191,3]
[329558620,1718435453676,-500.0,0.00022191,3]
[329558621,1718435453690,-500.0,0.00022191,3]
[329558622,1718435453703,-500.0,0.00022191,3]
[329558623,1718435453721,-500.0,0.00022191,3]
[329558624,1718435453733,-500.0,0.00022191,3]
[329558625,1718435453746,-500.0,0.00022191,3]
[329558626,1718435453759,-500.0,0.00022191,3]
[329558627,1718435453772,-500.0,0.00022191,3]
[329558628,1718435453786,-500.0,0.00022191,3]
[329558629,1718435453799,-500.0,0.00022191,3]
[329558630,1718435453810,-197.76766468,0.00022191,3]
[329558631,1718435453822,-500.0,0.00022191,3]
[329558632,1718435453833,-500.0,0.00022191,3]
[329558633,1718435453856,-535.73016621,0.00022191,3]
[329558634,1718435453868,-525.58267356,0.00022191,3]
[329558635,1718435453880,-247.7412039,0.00022191,3]
[329558636,1718435453894,-500.0,0.00022191,3]
[329558637,1718435453916,-500.0,0.00022191,3]
[329558638,1718435453928,-500.0,0.00022191,3]
[329558639,1718435453952,-500.0,0.00022191,3]
[329558640,1718435453963,-519.19978505,0.00022191,3]
[329558641,1718435453979,-386.8135467,0.00022191,3]
[329558642,1718435454033,-500.0,0.00022191,3]
[329558643,1718435454064,-500.0,0.00022191,3]
[329558644,1718435454093,-500.0,0.00022191,3]
[329558645,1718435454116,-824.09,0.00022191,3]
[329558646,1718435454139,-500.0,0.00022191,3]
[329558647,1718435454163,-500.0,0.00022191,3]
[329558648,1718435454176,-500.0,0.00022191,3]
[329558649,1718435454212,-554.5,0.00022191,3]
[329558650,1718435454241,-500.0,0.00022191,3]
[329558651,1718435454262,-500.0,0.00022191,3]
[329558652,1718435454289,-500.0,0.00022191,3]
[329558653,1718435454318,-500.0,0.00022191,3]
[329558654,1718435454330,-500.0,0.00022191,3]
[329558655,1718435454343,-500.0,0.00022191,3]
[329558656,1718435454376,-500.0,0.00022191,3]
[329558657,1718435454387,-500.0,0.00022191,3]
[329558658,1718435454415,-500.0,0.00022191,3]
[329558659,1718435454445,-500.0,0.00022191,3]
[329558660,1718435454457,-500.0,0.00022191,3]
[329558661,1718435454489,-500.0,0.00022191,3]
[329558662,1718435454515,-500.0,0.00022191,3]
[329558663,1718435454544,-500.0,0.00022191,3]
[329558664,1718435454584,-220.2,0.00022191,3]
[329558665,1718435454641,-599.71,0.00022191,3]
[329558666,1718435454656,-500.0,0.00022191,3]
[329558667,1718435454680,-500.0,0.00022191,3]
[329558668,1718435454692,-500.0,0.00022191,3]
[329558669,1718435454726,-502.96,0.00022191,3]
[329558670,1718435454755,-559.55,0.00022191,3]
[329558671,1718435454840,-500.0,0.00022191,3]
[329558672,1718435454862,-500.0,0.00022191,3]
[329558673,1718435454891,-500.0,0.00022191,3]
[329558674,1718435454933,-500.0,0.00022191,3]
[329558675,1718435454945,-500.0,0.00022191,3]
[329558676,1718435454973,-500.0,0.00022191,3]
[329558677,1718435454997,-549.10975619,0.00022191,3]
[329558678,1718435455022,-822.0,0.00022191,3]
[329558679,1718435455064,-500.0,0.00022191,3]
[329558680,1718435455080,-500.0,0.00022191,3]
[329558682,1718435455121,-500.0,0.00022191,3]
[329558684,1718435455138,-500.0,0.00022191,3]
[329558685,1718435455164,-500.0,0.00022191,3]
[329558688,1718435455180,-500.0,0.00022191,3]
[329558689,1718435455206,-500.0,0.00022191,3]
[329558691,1718435455221,-500.0,0.00022191,3]
[329558692,1718435455252,-500.0,0.00022191,3]
[329558695,1718435455277,-807.24,0.00022191,3]
[329558697,1718435455308,-500.0,0.00022191,3]
[329558699,1718435455324,-500.0,0.00022191,3]
[329558700,1718435455367,-500.0,0.00022191,3]
[329558701,1718435455400,-500.0,0.00022191,3]
[329558702,1718435455424,-500.0,0.00022191,3]
[329558703,1718435455439,-500.0,0.00022191,3]
[329558704,1718435455566,-516.22040672,0.00022191,3]
[329558705,1718435455593,-519.27568342,0.00022191,3]
[329558707,1718435455606,-500.0,0.00022191,3]
[329558708,1718435455638,-500.0,0.00022191,3]
[329558709,1718435455685,-500.0,0.00022191,3]
[329558710,1718435455722,-500.0,0.00022191,3]
[329558711,1718435455752,-611.01,0.00022191,3]
[329558712,1718435455767,-647.29,0.00022191,3]
[329558713,1718435455781,-500.0,0.00022191,3]
[329558714,1718435455795,-500.0,0.00022191,3]
[329558715,1718435455818,-500.0,0.00022191,3]
[329558716,1718435455843,-500.0,0.00022191,3]
[329558717,1718435455864,-1289.88,0.00022191,3]
[329558718,1718435455911,-500.0,0.00022191,3]
[329558719,1718435455924,-829.91,0.00022191,3]
[329558720,1718435455938,-980.82,0.00022191,3]
[329558721,1718435455960,-500.0,0.00022191,3]
[329558722,1718435455975,-500.0,0.00022191,3]
[329558723,1718435455996,-1155.63,0.00022191,3]
[329558724,1718435456017,-186.02682685,0.00022191,3]
[329558725,1718435456039,-500.0,0.00022191,3]
[329558726,1718435456053,-557.85,0.00022191,3]
[329558727,1718435456071,-500.0,0.00022191,3]
[329558728,1718435456101,-500.0,0.00022191,3]
[329558729,1718435456128,-737.15,0.00022191,3]
[329558730,1718435456159,-1487.32,0.00022191,3]
[329558731,1718435456191,-500.0,0.00022191,3]
[329558732,1718435456203,-690.67,0.00022191,3]
[329558733,1718435456217,-1389.77,0.00022191,3]
[329558734,1718435456248,-692.2,0.00022191,3]
[329558735,1718435456260,-500.0,0.00022191,3]
[329558736,1718435456273,-831.05,0.00022191,3]
[329558737,1718435456289,-932.74,0.00022191,3]
[329558738,1718435456313,-500.0,0.00022191,3]
[329558739,1718435456340,-500.0,0.00022191,3]
[329558740,1718435456355,-505.59,0.00022191,3]
[329558741,1718435456390,-1032.95,0.00022191,3]
[329558742,1718435456406,-589.32,0.00022191,3]
[329558743,1718435456418,-500.0,0.00022191,3]
[329558744,1718435456448,-797.23,0.00022191,3]
[329558745,1718435456462,-1276.13,0.00022191,3]
[329558746,1718435456491,-500.0,0.00022191,3]
[329558747,1718435456509,-500.0,0.00022191,3]
[329558748,1718435456541,-500.0,0.00022191,3]
[329558749,1718435456554,-1199.7,0.00022191,3]
[329558750,1718435456574,-500.0,0.00022191,3]
[329558751,1718435456609,-500.0,0.00022191,3]
[329558752,1718435456626,-976.11,0.00022191,3]
[329558753,1718435456653,-855.62,0.00022191,3]
[329558754,1718435456670,-500.0,0.00022191,3]
[329558755,1718435456695,-500.0,0.00022191,3]
[329558756,1718435456713,-151.0,0.00022191,7]
[329558757,1718435456740,-500.0,0.00022191,3]
[329558758,1718435456752,-500.0,0.00022191,3]
[329558759,1718435456764,-500.0,0.00022191,3]
[329558760,1718435456778,-703.58,0.00022191,3]
[329558761,1718435456796,-1002.58,0.00022191,3]
[329558762,1718435456816,-500.0,0.00022191,3]
[329558763,1718435456829,-553.63,0.00022191,3]
[329558764,1718435456857,-686.26,0.00022191,3]
[329558765,1718435456874,-500.0,0.00022191,3]
[329558766,1718435456906,-1071.43,0.00022191,3]
[329558767,1718435456921,-583.66,0.00022191,3]
[329558768,1718435456963,-500.0,0.00022191,3]
[329558769,1718435456988,-902.51,0.00022191,3]
[329558770,1718435457000,-500.0,0.00022191,3]
[329558771,1718435457032,-500.0,0.00022191,3]
[329558772,1718435457046,-500.0,0.00022191,3]
[329558773,1718435457089,-790.17,0.00022191,3]
[329558774,1718435457111,-848.03,0.00022191,3]
[329558775,1718435457128,-500.0,0.00022191,3]
[329558776,1718435457143,-500.0,0.00022191,3]
[329558777,1718435457159,-500.0,0.00022191,3]
[329558778,1718435457180,-500.0,0.00022191,3]
[329558779,1718435457209,-500.0,0.00022191,3]
[329558780,1718435457225,-1089.4,0.00022191,3]
[329558781,1718435457244,-650.43,0.00022191,3]